[Event "*** Titled Tuesday Blitz"]
[Site "Chess.com"]
[Date "2020.04.14"]
[Round "6"]
[White "Durarbayli"]
[Black "Faqade"]
[Result "1-0"]
[WhiteElo "2827"]
[BlackElo "2632"]
[TimeControl "180+1"]
[EndTime "11:04:41 PDT"]
[Termination "Durarbayli won by resignation"]

1. e4 {[%clk 0:03:00.9]} 1... e5 {[%clk 0:02:59.9]} 2. Nf3 {[%clk 0:03:00.1]}
2... Nc6 {[%clk 0:03:00.4]} 3. Bb5 {[%clk 0:03:00.2]} 3... Nge7 {[%clk
0:02:58.9]} 4. c3 {[%clk 0:02:55.9]} 4... a6 {[%clk 0:02:57.1]} 5. Ba4 {[%clk
0:02:55.8]} 5... g6 {[%clk 0:02:56.8]} 6. d4 {[%clk 0:02:54.8]} 6... exd4 {[%clk
0:02:54.7]} 7. cxd4 {[%clk 0:02:55.7]} 7... b5 {[%clk 0:02:55]} 8. Bc2 {[%clk
0:02:55.5]} 8... Bg7 {[%clk 0:02:55.5]} 9. O-O {[%clk 0:02:48.7]} 9... d6 {[%clk
0:02:54.3]} 10. d5 {[%clk 0:02:44.1]} 10... Na5 {[%clk 0:02:53.8]} 11. Bd2
{[%clk 0:02:43.6]} 11... Bxb2 {[%clk 0:02:45.7]} 12. Bxa5 {[%clk 0:02:43.4]}
12... Bxa1 {[%clk 0:02:46.2]} 13. Nc3 {[%clk 0:02:43.9]} 13... Bb2 {[%clk
0:02:46.6]} 14. Qd2 {[%clk 0:02:44.5]} 14... f6 {[%clk 0:02:42.9]} 15. Ne2
{[%clk 0:02:36.8]} 15... O-O {[%clk 0:02:37.1]} 16. Nfd4 {[%clk 0:02:22.9]}
16... Bd7 {[%clk 0:02:22.1]} 17. h4 {[%clk 0:02:15.6]} 17... f5 {[%clk
0:02:07.6]} 18. h5 {[%clk 0:02:03.5]} 18... fxe4 {[%clk 0:01:33.4]} 19. Bxe4
{[%clk 0:02:01.2]} 19... Bxd4 {[%clk 0:01:34]} 20. Qxd4 {[%clk 0:01:58]} 20...
c5 {[%clk 0:01:34.5]} 21. dxc6 {[%clk 0:01:48.6]} 21... Qxa5 {[%clk 0:01:33.4]}
22. cxd7 {[%clk 0:01:47.3]} 22... d5 {[%clk 0:01:07.6]} 23. Bxd5+ {[%clk
0:01:12.6]} 23... Nxd5 {[%clk 0:01:08.5]} 24. Qxd5+ {[%clk 0:01:13.5]} 24... Kh8
{[%clk 0:01:04]} 25. Qd4+ {[%clk 0:01:08.8]} 25... Kg8 {[%clk 0:01:02.2]} 26. h6
{[%clk 0:01:08.8]} 26... Rf7 {[%clk 0:01:01.8]} 27. Nc3 {[%clk 0:00:47.5]} 27...
Qc7 {[%clk 0:00:24]} 28. Nd5 {[%clk 0:00:19.8]} 28... Qd6 {[%clk 0:00:23.6]} 29.
Re1 {[%clk 0:00:20.1]} 29... Raf8 {[%clk 0:00:19.3]} 30. Ne7+ {[%clk 0:00:15]}
30... Rxe7 {[%clk 0:00:16.6]} 31. Qxd6 {[%clk 0:00:15.5]} 31... Rxe1+ {[%clk
0:00:17.1]} 32. Kh2 {[%clk 0:00:16.1]} 32... Rd8 {[%clk 0:00:16.2]} 33. Qd5+
{[%clk 0:00:16.2]} 33... Kf8 {[%clk 0:00:15.3]} 34. Qd4 {[%clk 0:00:15.5]} 34...
Kf7 {[%clk 0:00:06.7]} 35. Qg7+ {[%clk 0:00:12.3]} 35... Ke6 {[%clk 0:00:07.2]}
36. Qxh7 {[%clk 0:00:12.9]} 36... Re5 {[%clk 0:00:03.4]} 37. Qxg6+ {[%clk
0:00:13]} 37... Kxd7 {[%clk 0:00:04]} 38. f4 {[%clk 0:00:13.3]} 38... Re6 {[%clk
0:00:04]} 39. Qg7+ {[%clk 0:00:13.6]} 39... Re7 {[%clk 0:00:04.1]} 40. Qg4+
{[%clk 0:00:14]} 40... Kd6 {[%clk 0:00:03.8]} 41. Qg5 {[%clk 0:00:13.8]} 41...
Rf8 {[%clk 0:00:02.6]} 42. f5 {[%clk 0:00:13]} 42... Ref7 {[%clk 0:00:02.6]} 43.
g4 {[%clk 0:00:12.9]} 43... Rf6 {[%clk 0:00:02.5]} 44. Kg3 {[%clk 0:00:12.2]}
44... Ke5 {[%clk 0:00:02.4]} 45. Qf4+ {[%clk 0:00:12.3]} 45... Kd5 {[%clk
0:00:03]} 46. Qd2+ {[%clk 0:00:12.3]} 46... Ke4 {[%clk 0:00:02.9]} 47. Qe2+
{[%clk 0:00:12.3]} 47... Kd4 {[%clk 0:00:02.2]} 48. Qd2+ {[%clk 0:00:12.8]}
48... Ke4 {[%clk 0:00:02]} 49. Qg5 {[%clk 0:00:12.8]} 49... Kd4 {[%clk
0:00:02.5]} 50. Kf3 {[%clk 0:00:12.7]} 50... b4 {[%clk 0:00:02.1]} 51. Qf4+
{[%clk 0:00:12.4]} 51... Kd5 {[%clk 0:00:02.4]} 52. Qxb4 {[%clk 0:00:11.9]}
52... Rh8 {[%clk 0:00:01.8]} 53. Qe4+ {[%clk 0:00:12]} 53... Kd6 {[%clk
0:00:02.1]} 54. Qd4+ {[%clk 0:00:12]} 54... Ke7 {[%clk 0:00:02.7]} 55. Qe5+
{[%clk 0:00:12.1]} 55... Kf7 {[%clk 0:00:02.8]} 56. g5 {[%clk 0:00:12.5]} 1-0

[Event "*** Titled Tuesday Blitz"]
[Site "Chess.com"]
[Date "2020.04.14"]
[Round "6"]
[White "Poghosyan_Suren"]
[Black "Falia-p"]
[Result "1-0"]
[WhiteElo "2507"]
[BlackElo "2323"]
[TimeControl "180+1"]
[EndTime "11:04:41 PDT"]
[Termination "Poghosyan_Suren won by checkmate"]

1. Nf3 {[%clk 0:03:00.9]} 1... d5 {[%clk 0:02:59]} 2. c4 {[%clk 0:02:59.9]} 2...
d4 {[%clk 0:02:58.4]} 3. e3 {[%clk 0:02:59.9]} 3... c5 {[%clk 0:02:57.2]} 4.
exd4 {[%clk 0:03:00.8]} 4... cxd4 {[%clk 0:02:57.5]} 5. b4 {[%clk 0:03:00.6]}
5... f6 {[%clk 0:02:56.6]} 6. d3 {[%clk 0:02:58.8]} 6... e5 {[%clk 0:02:56.1]}
7. c5 {[%clk 0:02:59.4]} 7... a5 {[%clk 0:02:55.5]} 8. bxa5 {[%clk 0:02:57.5]}
8... Bxc5 {[%clk 0:02:53.7]} 9. Be2 {[%clk 0:02:57.6]} 9... Qxa5+ {[%clk
0:02:51.2]} 10. Bd2 {[%clk 0:02:54.4]} 10... Bb4 {[%clk 0:02:48]} 11. O-O {[%clk
0:02:52.8]} 11... Bxd2 {[%clk 0:02:47.8]} 12. Nbxd2 {[%clk 0:02:53.4]} 12... Ne7
{[%clk 0:02:46.8]} 13. Nc4 {[%clk 0:02:53.2]} 13... Qc7 {[%clk 0:02:42.3]} 14.
Qb3 {[%clk 0:02:52]} 14... Nbc6 {[%clk 0:02:38.3]} 15. Rfc1 {[%clk 0:02:47.4]}
15... Be6 {[%clk 0:02:35.6]} 16. Nfd2 {[%clk 0:02:29.3]} 16... O-O {[%clk
0:02:31.4]} 17. Bf3 {[%clk 0:02:27.4]} 17... Nd5 {[%clk 0:02:22.4]} 18. Ne4
{[%clk 0:02:14.5]} 18... Nf4 {[%clk 0:01:48.9]} 19. h4 {[%clk 0:01:59.1]} 19...
Na5 {[%clk 0:01:39.6]} 20. Nxa5 {[%clk 0:01:47.9]} 20... Qxa5 {[%clk 0:01:38.8]}
21. Qxb7 {[%clk 0:01:44.9]} 21... Nxd3 {[%clk 0:01:30.4]} 22. Rc7 {[%clk
0:01:38.7]} 22... Bf7 {[%clk 0:01:12.5]} 23. Nd6 {[%clk 0:01:29.2]} 23... Nc5
{[%clk 0:01:07.2]} 24. Qc6 {[%clk 0:01:21]} 24... Ra6 {[%clk 0:01:00.4]} 25.
Qxc5 {[%clk 0:01:19.3]} 25... Qxc5 {[%clk 0:00:59.7]} 26. Rxc5 {[%clk
0:01:17.4]} 26... Rxd6 {[%clk 0:00:59.8]} 27. Be4 {[%clk 0:01:16.8]} 27... d3
{[%clk 0:00:58.4]} 28. Rd1 {[%clk 0:01:14.5]} 28... d2 {[%clk 0:00:58.2]} 29.
Rc2 {[%clk 0:00:58.9]} 29... Rfd8 {[%clk 0:00:58]} 30. f3 {[%clk 0:00:59.3]}
30... g6 {[%clk 0:00:52.7]} 31. g4 {[%clk 0:00:58.5]} 31... Be6 {[%clk
0:00:51.6]} 32. Rb2 {[%clk 0:00:55.2]} 32... f5 {[%clk 0:00:50.3]} 33. gxf5
{[%clk 0:00:55.7]} 33... gxf5 {[%clk 0:00:50.2]} 34. Bb1 {[%clk 0:00:56.1]}
34... Kf7 {[%clk 0:00:42.8]} 35. Kf2 {[%clk 0:00:55.6]} 35... Kf6 {[%clk
0:00:42.7]} 36. Ke3 {[%clk 0:00:50.2]} 36... f4+ {[%clk 0:00:38.9]} 37. Kf2
{[%clk 0:00:50.3]} 37... h6 {[%clk 0:00:34.1]} 38. Be4 {[%clk 0:00:47.5]} 38...
Bc8 {[%clk 0:00:27.7]} 39. a4 {[%clk 0:00:39.2]} 39... Ba6 {[%clk 0:00:26.3]}
40. a5 {[%clk 0:00:38.6]} 40... Bc4 {[%clk 0:00:24.5]} 41. Rb4 {[%clk
0:00:30.3]} 41... Ba6 {[%clk 0:00:23]} 42. Rb2 {[%clk 0:00:27.3]} 42... Bc4
{[%clk 0:00:22.6]} 43. Rb6 {[%clk 0:00:25.3]} 43... Ba6 {[%clk 0:00:20.5]} 44.
Rxd2 {[%clk 0:00:22.5]} 44... Rxb6 {[%clk 0:00:20.6]} 45. Rxd8 {[%clk
0:00:23.3]} 45... Rb2+ {[%clk 0:00:20.1]} 46. Kg1 {[%clk 0:00:22.5]} 46... Rb1+
{[%clk 0:00:20.3]} 47. Kf2 {[%clk 0:00:22.1]} 47... Rb2+ {[%clk 0:00:19.9]} 48.
Kg1 {[%clk 0:00:22.3]} 48... Ra2 {[%clk 0:00:18.8]} 49. Rd6+ {[%clk 0:00:20.9]}
49... Ke7 {[%clk 0:00:18.5]} 50. Rxa6 {[%clk 0:00:19.7]} 50... Ra1+ {[%clk
0:00:19.2]} 51. Kf2 {[%clk 0:00:19.1]} 51... Ra2+ {[%clk 0:00:20.1]} 52. Kg1
{[%clk 0:00:19.4]} 52... Ra1+ {[%clk 0:00:21]} 53. Kg2 {[%clk 0:00:19.8]} 53...
Ra2+ {[%clk 0:00:21.9]} 54. Kh3 {[%clk 0:00:20]} 54... Ra4 {[%clk 0:00:21.7]}
55. Kg4 {[%clk 0:00:19.7]} 55... Kd7 {[%clk 0:00:21.8]} 56. Kf5 {[%clk
0:00:19.5]} 56... Kc7 {[%clk 0:00:22.7]} 57. Kxe5 {[%clk 0:00:19.6]} 57... Ra3
{[%clk 0:00:22.6]} 58. Kxf4 {[%clk 0:00:19.6]} 58... h5 {[%clk 0:00:23.5]} 59.
Ra7+ {[%clk 0:00:19.1]} 59... Kb8 {[%clk 0:00:23]} 60. Ra8+ {[%clk 0:00:19.1]}
60... Kc7 {[%clk 0:00:23.3]} 61. a6 {[%clk 0:00:19]} 61... Kb6 {[%clk
0:00:23.3]} 62. Rb8+ {[%clk 0:00:18.7]} 62... Kc7 {[%clk 0:00:23.4]} 63. Rb7+
{[%clk 0:00:17.7]} 63... Kc8 {[%clk 0:00:23.8]} 64. Rh7 {[%clk 0:00:17.5]} 64...
Rxa6 {[%clk 0:00:23.2]} 65. Bb7+ {[%clk 0:00:17]} 65... Kd8 {[%clk 0:00:23.4]}
66. Bxa6 {[%clk 0:00:17.9]} 66... Ke8 {[%clk 0:00:24.2]} 67. Ke5 {[%clk
0:00:18.4]} 67... Kf8 {[%clk 0:00:24.3]} 68. Kf6 {[%clk 0:00:19.3]} 68... Kg8
{[%clk 0:00:25.1]} 69. Bd3 {[%clk 0:00:19.1]} 69... Kf8 {[%clk 0:00:25.1]} 70.
Rh8# {[%clk 0:00:20]} 1-0

[Event "*** Titled Tuesday Blitz"]
[Site "Chess.com"]
[Date "2020.04.14"]
[Round "6"]
[White "Salem-AR"]
[Black "adiosabu"]
[Result "1-0"]
[WhiteElo "2909"]
[BlackElo "2557"]
[TimeControl "180+1"]
[EndTime "11:04:44 PDT"]
[Termination "Salem-AR won by resignation"]

1. d4 {[%clk 0:03:00.9]} 1... Nf6 {[%clk 0:02:56.1]} 2. c4 {[%clk 0:03:01.4]}
2... d6 {[%clk 0:02:56.2]} 3. Nf3 {[%clk 0:03:00.9]} 3... Nbd7 {[%clk
0:02:56.7]} 4. Nc3 {[%clk 0:03:00.9]} 4... e5 {[%clk 0:02:56.5]} 5. Bg5 {[%clk
0:03:01.2]} 5... Be7 {[%clk 0:02:55.9]} 6. e3 {[%clk 0:03:01.7]} 6... O-O {[%clk
0:02:54]} 7. Qc2 {[%clk 0:03:02.3]} 7... exd4 {[%clk 0:02:53.2]} 8. exd4 {[%clk
0:03:01.6]} 8... Re8 {[%clk 0:02:45.3]} 9. O-O-O {[%clk 0:03:01.6]} 9... Nf8
{[%clk 0:02:35.6]} 10. h3 {[%clk 0:03:01.9]} 10... c6 {[%clk 0:02:26.8]} 11. Bd3
{[%clk 0:03:01.8]} 11... a6 {[%clk 0:02:26.8]} 12. Kb1 {[%clk 0:02:39.2]} 12...
b5 {[%clk 0:02:19.8]} 13. Rhe1 {[%clk 0:02:38.9]} 13... bxc4 {[%clk 0:02:11]}
14. Bxc4 {[%clk 0:02:38.7]} 14... Be6 {[%clk 0:02:10.8]} 15. Bxe6 {[%clk
0:01:59.9]} 15... Nxe6 {[%clk 0:02:10.6]} 16. Bxf6 {[%clk 0:01:55.3]} 16... Bxf6
{[%clk 0:02:10.2]} 17. Ne4 {[%clk 0:01:56]} 17... Rc8 {[%clk 0:01:28.1]} 18. Qa4
{[%clk 0:01:55.8]} 18... d5 {[%clk 0:01:22.6]} 19. Nxf6+ {[%clk 0:01:51.8]}
19... Qxf6 {[%clk 0:01:23]} 20. Qxa6 {[%clk 0:01:52.3]} 20... Qg6+ {[%clk
0:01:22.3]} 21. Qd3 {[%clk 0:01:24.3]} 21... Qxg2 {[%clk 0:01:19.8]} 22. Rg1
{[%clk 0:01:19]} 22... Qxf2 {[%clk 0:01:15.1]} 23. Rdf1 {[%clk 0:01:19.1]} 23...
Nf4 {[%clk 0:01:15.1]} 24. Qf5 {[%clk 0:01:18.1]} 24... Qe3 {[%clk 0:01:10.8]}
25. Ne5 {[%clk 0:01:07.1]} 25... Ne6 {[%clk 0:00:40.9]} 26. Qxf7+ {[%clk
0:00:48.4]} 26... Kh8 {[%clk 0:00:40.5]} 27. Rg4 {[%clk 0:00:47.8]} 27... Rf8
{[%clk 0:00:23.5]} 28. Ng6+ {[%clk 0:00:39.6]} 28... hxg6 {[%clk 0:00:23.4]} 29.
Rh4+ {[%clk 0:00:40.5]} 29... Qh6 {[%clk 0:00:23.7]} 30. Rxh6+ {[%clk
0:00:41.1]} 30... gxh6 {[%clk 0:00:24]} 31. Qxe6 {[%clk 0:00:41.8]} 31... Rxf1+
{[%clk 0:00:24]} 32. Kc2 {[%clk 0:00:42.6]} 32... Rcf8 {[%clk 0:00:23.3]} 33.
Qxg6 {[%clk 0:00:35.8]} 33... R8f6 {[%clk 0:00:22.2]} 34. Qe8+ {[%clk
0:00:33.9]} 34... Kg7 {[%clk 0:00:21.5]} 35. Kc3 {[%clk 0:00:25.4]} 35... Rc1+
{[%clk 0:00:18]} 36. Kb3 {[%clk 0:00:19.1]} 36... Rf3+ {[%clk 0:00:16.8]} 37.
Kb4 {[%clk 0:00:19.6]} 37... Rc4+ {[%clk 0:00:16.7]} 38. Ka5 {[%clk 0:00:20.3]}
38... Rf2 {[%clk 0:00:15]} 39. Qe5+ {[%clk 0:00:18.1]} 39... Rf6 {[%clk
0:00:12.9]} 40. b3 {[%clk 0:00:16.3]} 40... Rc2 {[%clk 0:00:11]} 41. a4 {[%clk
0:00:16.4]} 41... Rf2 {[%clk 0:00:09.4]} 42. Kb6 {[%clk 0:00:15.3]} 42... Rf5
{[%clk 0:00:09.2]} 43. Qc7+ {[%clk 0:00:14.6]} 43... Rf7 {[%clk 0:00:07.7]} 44.
Qg3+ {[%clk 0:00:14.5]} 44... Rg5 {[%clk 0:00:07.8]} 45. Qe3 {[%clk 0:00:13.5]}
45... Rg6 {[%clk 0:00:07.8]} 46. Kc5 {[%clk 0:00:13]} 46... Rb7 {[%clk
0:00:06.3]} 47. b4 {[%clk 0:00:12.4]} 47... Rf6 {[%clk 0:00:05.9]} 48. Qg3+
{[%clk 0:00:10.3]} 48... Kf7 {[%clk 0:00:05.8]} 49. Qd3 {[%clk 0:00:10.4]} 49...
Kg7 {[%clk 0:00:05.4]} 50. Qe3 {[%clk 0:00:09]} 50... Rff7 {[%clk 0:00:04.7]}
51. Qg3+ {[%clk 0:00:09]} 51... Kh7 {[%clk 0:00:04.6]} 52. Qd3+ {[%clk
0:00:07.9]} 52... Kg7 {[%clk 0:00:04]} 53. Qd2 {[%clk 0:00:08.4]} 53... Kh7
{[%clk 0:00:03.3]} 54. Kxc6 {[%clk 0:00:08.6]} 54... Rfc7+ {[%clk 0:00:03]} 55.
Kxd5 {[%clk 0:00:09]} 55... Rd7+ {[%clk 0:00:03.5]} 56. Kc4 {[%clk 0:00:09.6]}
56... Rdc7+ {[%clk 0:00:03.5]} 57. Kb3 {[%clk 0:00:10.2]} 57... Rb6 {[%clk
0:00:02.5]} 58. Qd3+ {[%clk 0:00:10.7]} 58... Kg7 {[%clk 0:00:02]} 59. Qg3+
{[%clk 0:00:11.4]} 1-0

[Event "*** Titled Tuesday Blitz"]
[Site "Chess.com"]
[Date "2020.04.14"]
[Round "6"]
[White "BilodeauA"]
[Black "Izoria123"]
[Result "1/2-1/2"]
[WhiteElo "2905"]
[BlackElo "2795"]
[TimeControl "180+1"]
[EndTime "11:04:44 PDT"]
[Termination "Game drawn by agreement"]

1. e4 {[%clk 0:03:00.9]} 1... Nc6 {[%clk 0:02:59.4]} 2. Nf3 {[%clk 0:02:58.1]}
2... d6 {[%clk 0:02:59.1]} 3. d4 {[%clk 0:02:57.7]} 3... Nf6 {[%clk 0:02:57.4]}
4. Nc3 {[%clk 0:02:57.3]} 4... g6 {[%clk 0:02:57.5]} 5. d5 {[%clk 0:02:55.2]}
5... Nb8 {[%clk 0:02:57]} 6. h3 {[%clk 0:02:50.8]} 6... Bg7 {[%clk 0:02:57.4]}
7. Bc4 {[%clk 0:02:50.5]} 7... O-O {[%clk 0:02:57]} 8. O-O {[%clk 0:02:50.8]}
8... c6 {[%clk 0:02:46.8]} 9. a4 {[%clk 0:02:51]} 9... b6 {[%clk 0:02:44.3]} 10.
Re1 {[%clk 0:02:45.9]} 10... Bb7 {[%clk 0:02:41.6]} 11. Bg5 {[%clk 0:02:43.6]}
11... a6 {[%clk 0:02:40.5]} 12. dxc6 {[%clk 0:02:34.6]} 12... Bxc6 {[%clk
0:02:34]} 13. e5 {[%clk 0:02:26.3]} 13... dxe5 {[%clk 0:02:26.6]} 14. Nxe5
{[%clk 0:02:26.5]} 14... Qc7 {[%clk 0:01:20]} 15. Bf4 {[%clk 0:01:33.9]} 15...
Qb7 {[%clk 0:01:15.3]} 16. Nxf7 {[%clk 0:01:23]} 16... Rxf7 {[%clk 0:01:06.1]}
17. Qd8+ {[%clk 0:01:22.7]} 17... Bf8 {[%clk 0:01:06.3]} 18. Bxf7+ {[%clk
0:00:26.7]} 18... Kxf7 {[%clk 0:01:07.2]} 19. Qd4 {[%clk 0:00:21.5]} 19... Nbd7
{[%clk 0:01:05.8]} 20. f3 {[%clk 0:00:19.1]} 20... e5 {[%clk 0:01:02.1]} 21.
Qc4+ {[%clk 0:00:19]} 21... Bd5 {[%clk 0:00:59.7]} 22. Nxd5 {[%clk 0:00:19.1]}
22... Qxd5 {[%clk 0:01:00.3]} 23. Qxd5+ {[%clk 0:00:18.4]} 23... Nxd5 {[%clk
0:01:01.2]} 24. Bxe5 {[%clk 0:00:19.2]} 24... Nb4 {[%clk 0:01:01.4]} 25. Rad1
{[%clk 0:00:13]} 25... Nxe5 {[%clk 0:00:59.3]} 26. Rxe5 {[%clk 0:00:13.1]} 26...
Nxc2 {[%clk 0:00:56]} 27. Rd7+ {[%clk 0:00:12.1]} 27... Kg8 {[%clk 0:00:54.4]}
28. Re4 {[%clk 0:00:10.6]} 28... b5 {[%clk 0:00:48.9]} 29. h4 {[%clk 0:00:09.6]}
29... Nb4 {[%clk 0:00:35]} 30. h5 {[%clk 0:00:08.5]} 30... Nd5 {[%clk
0:00:34.9]} 31. Rxd5 {[%clk 0:00:05.8]} 31... bxa4 {[%clk 0:00:33.9]} 32. hxg6
{[%clk 0:00:06.3]} 32... hxg6 {[%clk 0:00:32.7]} 33. Rxa4 {[%clk 0:00:07]} 33...
a5 {[%clk 0:00:33.3]} 34. Rdxa5 {[%clk 0:00:06.4]} 34... Rb8 {[%clk 0:00:34]}
35. Ra7 {[%clk 0:00:06.3]} 35... Bc5+ {[%clk 0:00:31.3]} 36. Kh2 {[%clk
0:00:06.5]} 36... Bxa7 {[%clk 0:00:32]} 37. Rxa7 {[%clk 0:00:07.1]} 37... Rxb2
{[%clk 0:00:32.3]} 38. Kg3 {[%clk 0:00:08]} 38... Rb4 {[%clk 0:00:32.2]} 39. Kh3
{[%clk 0:00:08.3]} 39... Rc4 {[%clk 0:00:31.8]} 40. g3 {[%clk 0:00:08.7]} 40...
Rb4 {[%clk 0:00:32]} 41. f4 {[%clk 0:00:09.3]} 41... Kf8 {[%clk 0:00:29.2]} 42.
Kg4 {[%clk 0:00:09.5]} 42... Rb5 {[%clk 0:00:29.1]} 43. Rc7 {[%clk 0:00:09]}
43... Ra5 {[%clk 0:00:28.8]} 44. Kf3 {[%clk 0:00:09.5]} 44... Ra3+ {[%clk
0:00:27]} 45. Kg4 {[%clk 0:00:10]} 45... Ra5 {[%clk 0:00:27.5]} 46. Rh7 {[%clk
0:00:09.4]} 46... Rb5 {[%clk 0:00:26.3]} 47. Ra7 {[%clk 0:00:08.6]} 47... Rc5
{[%clk 0:00:26.3]} 48. Kh4 {[%clk 0:00:07.5]} 48... Rb5 {[%clk 0:00:25.6]} 49.
g4 {[%clk 0:00:07.8]} 49... Rc5 {[%clk 0:00:24.6]} 50. Kg3 {[%clk 0:00:06.4]}
50... Rc4 {[%clk 0:00:23.4]} 51. Kf3 {[%clk 0:00:05.7]} 51... Rb4 {[%clk
0:00:23.1]} 52. Rd7 {[%clk 0:00:06.1]} 52... Ra4 {[%clk 0:00:22.8]} 53. Ke3
{[%clk 0:00:06.4]} 53... Rb4 {[%clk 0:00:21.5]} 54. Rd4 {[%clk 0:00:06.2]} 54...
Rb7 {[%clk 0:00:21.6]} 55. Ke4 {[%clk 0:00:06.4]} 55... Kf7 {[%clk 0:00:21.6]}
56. Rd5 {[%clk 0:00:06.5]} 56... Re7+ {[%clk 0:00:20.6]} 57. Kd4 {[%clk
0:00:06.8]} 57... Re1 {[%clk 0:00:20.4]} 58. Rd7+ {[%clk 0:00:06.7]} 58... Kf8
{[%clk 0:00:20.2]} 59. Ra7 {[%clk 0:00:06.6]} 59... Re2 {[%clk 0:00:19.3]} 60.
Kd5 {[%clk 0:00:06.8]} 60... Re1 {[%clk 0:00:19]} 61. Kd6 {[%clk 0:00:06.3]}
61... Re4 {[%clk 0:00:18.2]} 62. f5 {[%clk 0:00:04.6]} 62... gxf5 {[%clk
0:00:17.2]} 63. gxf5 {[%clk 0:00:05.5]} 63... Re1 {[%clk 0:00:17.1]} 64. f6
{[%clk 0:00:03.8]} 64... Re2 {[%clk 0:00:16.8]} 65. f7 {[%clk 0:00:04.3]} 65...
Re1 {[%clk 0:00:16.8]} 66. Ra8+ {[%clk 0:00:04.9]} 66... Kxf7 {[%clk 0:00:16.6]}
67. Ra7+ {[%clk 0:00:05.3]} 1/2-1/2

[Event "*** Titled Tuesday Blitz"]
[Site "Chess.com"]
[Date "2020.04.14"]
[Round "6"]
[White "Abdimalik_Abdisalimov"]
[Black "731291"]
[Result "0-1"]
[WhiteElo "2789"]
[BlackElo "2623"]
[TimeControl "180+1"]
[EndTime "11:04:44 PDT"]
[Termination "731291 won on time"]

1. d4 {[%clk 0:02:57.7]} 1... Nf6 {[%clk 0:02:56.3]} 2. c4 {[%clk 0:02:57.7]}
2... e6 {[%clk 0:02:51.9]} 3. Nf3 {[%clk 0:02:55.4]} 3... b6 {[%clk 0:02:37.2]}
4. g3 {[%clk 0:02:55.2]} 4... Bb7 {[%clk 0:02:36.7]} 5. Bg2 {[%clk 0:02:54.4]}
5... Be7 {[%clk 0:02:37]} 6. O-O {[%clk 0:02:54.6]} 6... O-O {[%clk 0:02:37.5]}
7. Re1 {[%clk 0:02:55.2]} 7... Na6 {[%clk 0:02:24.5]} 8. a3 {[%clk 0:02:38.2]}
8... c5 {[%clk 0:02:14.6]} 9. d5 {[%clk 0:02:38]} 9... exd5 {[%clk 0:02:13.8]}
10. Nh4 {[%clk 0:02:38.4]} 10... Ne4 {[%clk 0:02:01.8]} 11. cxd5 {[%clk
0:02:38.4]} 11... Bxh4 {[%clk 0:02:00.8]} 12. Bxe4 {[%clk 0:02:38.2]} 12... Bf6
{[%clk 0:02:01]} 13. Nc3 {[%clk 0:02:35.1]} 13... d6 {[%clk 0:02:00.2]} 14. Bg2
{[%clk 0:02:30.8]} 14... Nc7 {[%clk 0:02:00.5]} 15. a4 {[%clk 0:02:29.4]} 15...
a6 {[%clk 0:01:58.7]} 16. e4 {[%clk 0:02:27.2]} 16... b5 {[%clk 0:01:59.1]} 17.
axb5 {[%clk 0:02:13.2]} 17... axb5 {[%clk 0:02:00]} 18. Rxa8 {[%clk 0:02:14.1]}
18... Qxa8 {[%clk 0:01:57.5]} 19. Bf4 {[%clk 0:02:15]} 19... Rd8 {[%clk
0:01:56.1]} 20. Qd2 {[%clk 0:01:39.7]} 20... b4 {[%clk 0:01:55]} 21. Nd1 {[%clk
0:01:39.5]} 21... Nb5 {[%clk 0:01:51.9]} 22. Ne3 {[%clk 0:01:37.9]} 22... Qa2
{[%clk 0:01:49.3]} 23. Nd1 {[%clk 0:01:03.3]} 23... Nd4 {[%clk 0:01:43.9]} 24.
Bxd6 {[%clk 0:00:57.4]} 24... Rxd6 {[%clk 0:01:37.2]} 25. e5 {[%clk 0:00:57.4]}
25... Bxe5 {[%clk 0:01:09.4]} 26. Rxe5 {[%clk 0:00:58.2]} 26... Rd8 {[%clk
0:01:05.1]} 27. Qe3 {[%clk 0:00:31.3]} 27... Qa8 {[%clk 0:00:58.1]} 28. Qe4
{[%clk 0:00:31]} 28... f6 {[%clk 0:00:48.8]} 29. Re7 {[%clk 0:00:30.8]} 29...
Bxd5 {[%clk 0:00:35.2]} 30. Qg4 {[%clk 0:00:30.5]} 30... g6 {[%clk 0:00:31.3]}
31. Bxd5+ {[%clk 0:00:18.4]} 31... Qxd5 {[%clk 0:00:29.9]} 32. Ne3 {[%clk
0:00:18.7]} 32... Qd6 {[%clk 0:00:21.4]} 33. Ra7 {[%clk 0:00:16]} 33... Qe6
{[%clk 0:00:18.6]} 34. Qd1 {[%clk 0:00:09]} 34... Rd7 {[%clk 0:00:16.6]} 35.
Rxd7 {[%clk 0:00:07.4]} 35... Qxd7 {[%clk 0:00:17.5]} 36. Kf1 {[%clk 0:00:05.8]}
36... Qb5+ {[%clk 0:00:16.9]} 37. Kg2 {[%clk 0:00:05.6]} 37... Qc6+ {[%clk
0:00:16.8]} 38. Kh3 {[%clk 0:00:03.9]} 38... Qe6+ {[%clk 0:00:16.7]} 39. Kg2
{[%clk 0:00:03.7]} 39... Qe4+ {[%clk 0:00:17.1]} 40. Kh3 {[%clk 0:00:03.9]}
40... Kg7 {[%clk 0:00:17.4]} 41. Qa4 {[%clk 0:00:03]} 41... Qe6+ {[%clk
0:00:17.2]} 42. Kg2 {[%clk 0:00:03.6]} 42... Qe4+ {[%clk 0:00:17]} 43. Kh3
{[%clk 0:00:04.1]} 43... Qe6+ {[%clk 0:00:10.8]} 44. Kg2 {[%clk 0:00:04.4]}
44... h5 {[%clk 0:00:10.9]} 45. Qa7+ {[%clk 0:00:03.9]} 45... Kh6 {[%clk
0:00:10.2]} 46. Qxc5 {[%clk 0:00:04.4]} 46... Qe4+ {[%clk 0:00:09.9]} 47. Kh3
{[%clk 0:00:02.6]} 47... Ne6 {[%clk 0:00:09.9]} 0-1